{"text_format":"3","workbook":"xlsx","n_sheets":2,"sheets":["dsexp","Sheet1"],"not_rendered":{"defined_names":2},"read":"whole","date_system":"1900"}

{"sheet":"dsexp","index":0,"n_rows":237,"n_cols":14,"rows_kept":237}
["DSXM","XB","CSRQ","GBZWMC","JSZC","ZGXX",{"$nulls":5},"DSXM","yjfx","gzdw"]
["黄增","男","1968-01-02",null,"研究员","在岗",{"$f":"VLOOKUP(A2,L:O,2,0)","v":"液压伺服阀"},{"$f":"VLOOKUP(A2,L:N,3,0)","v":"中船重工集团公司第七零四研究所"},{"$nulls":3},"黄增","液压伺服阀","中船重工集团公司第七零四研究所"]
["赵斌","男","1967-01-17",null,"高级工程师","在岗",{"$f":"VLOOKUP(A3,L:O,2,0)","v":"工程机械"},{"$f":"VLOOKUP(A3,L:N,3,0)","v":"江苏徐工工程机械研究院有限公司"},{"$nulls":3},"赵斌","工程机械","江苏徐工工程机械研究院有限公司"]
["王鑫","男","1984-03-11",null,"高级工程师","在岗","机械电子工程、机器人","深圳航天科技创新研究院",{"$nulls":3},"王鑫","机械电子工程、机器人","深圳航天科技创新研究院"]
["杨广文","男","1963-01-07","副主任","高级工程师","在岗","流体传动与控制、机械制造工艺与装备","北京华德液压工业集团有限责任公司",{"$nulls":3},"杨广文","流体传动与控制、机械制造工艺与装备","北京华德液压工业集团有限责任公司"]
["朱学斌","男","1974-10-26",null,"高级工程师","在岗","特种车辆","泰安航天特种车有限公司",{"$nulls":3},"朱学斌","特种车辆","泰安航天特种车有限公司"]
["陈毅强","男","1972-10-09",null,"高级工程师","在岗","机械电子工程","沈阳仪表科学研究院有限公司",{"$nulls":3},"陈毅强","机械电子工程","沈阳仪表科学研究院有限公司"]
["余发国","男","1979-08-08","副院长\r\n","高级工程师","在岗","重型数控机床开发","秦皇岛齐二数控机床有限公司",{"$nulls":3},"余发国","重型数控机床开发","秦皇岛齐二数控机床有限公司"]
["李勇","男","1970-05-18","副院长\r\n","高级工程师","在岗","现代设计理论与方法","江苏徐工工程机械研究院有限公司",{"$nulls":3},"李勇","现代设计理论与方法","江苏徐工工程机械研究院有限公司"]
["邱群先","男","1972-02-28",null,null,"在岗","机械工程","中国船舶重工集团公司第七一三研究所",{"$nulls":3},"邱群先","机械工程","中国船舶重工集团公司第七一三研究所"]
["王久增","男","1976-03-03","科长","高级工程师","在岗","交通机电工程","唐山市唐港高速公路管理处",{"$nulls":3},"王久增","交通机电工程","唐山市唐港高速公路管理处"]
["任玉成","男","1966-09-28",null,"高级工程师","在岗","冶金机械、板带精整与处理专业","中国重型机械研究院股份公司",{"$nulls":3},"任玉成","冶金机械、板带精整与处理专业","中国重型机械研究院股份公司"]
["陈伟","男","1976-12-04",null,"高级工程师","在岗","光学工程","江苏亨通光纤科技有限公司",{"$nulls":3},"陈伟","光学工程","江苏亨通光纤科技有限公司"]
["张君","男","1970-05-28",null,"高级工程师","在岗","材料加工工程/机械工程","中国重型机械研究院股份公司",{"$nulls":3},"张君","材料加工工程/机械工程","中国重型机械研究院股份公司"]
["祁玉龙","男","1982-12-09",null,"高级工程师","在岗","工程机械","江苏徐工工程机械研究院有限公司",{"$nulls":3},"祁玉龙","工程机械","江苏徐工工程机械研究院有限公司"]
["程乃良","男","1964-05-21",null,"高级工程师","在岗","炼钢连铸技术研究","宝钢股份上海梅山钢铁股份有限公司",{"$nulls":3},"程乃良","炼钢连铸技术研究","宝钢股份上海梅山钢铁股份有限公司"]
["蒋振宇","男","1986-09-30",null,"高级工程师","在岗","机器人设计、机器人液压控制","深圳航天龙海特智能装备有限公司",{"$nulls":3},"蒋振宇","机器人设计、机器人液压控制","深圳航天龙海特智能装备有限公司"]
["邱孜学","男","1963-10-01",null,"高级工程师","在岗","特种工程塑料（主要是聚酰亚胺类）配方设计及制作","上海市合成树脂研究所有限公司",{"$nulls":3},"邱孜学","特种工程塑料（主要是聚酰亚胺类）配方设计及制作","上海市合成树脂研究所有限公司"]
["耿彦波","男","1982-03-19","所长","高级工程师","在岗","新产品开发、整机设计匹配","江苏徐工工程机械研究院有限公司",{"$nulls":3},"耿彦波","新产品开发、整机设计匹配","江苏徐工工程机械研究院有限公司"]
["漆小虎","男","1971-11-07","院长","高级工程师","在岗","冶金轧制设备及工艺领域","二重（德阳）中兴装备有限公司",{"$nulls":3},"漆小虎","冶金轧制设备及工艺领域","二重（德阳）中兴装备有限公司"]
["邝霜","男","1981-09-22","副主任","高级工程师","在岗","材料加工工程","河钢集团唐钢公司技术中心",{"$nulls":3},"邝霜","材料加工工程","河钢集团唐钢公司技术中心"]
["刘靖宝","男","1983-05-09","科长","高级工程师","在岗","材料加工","河钢集团唐钢公司技术中心",{"$nulls":3},"刘靖宝","材料加工","河钢集团唐钢公司技术中心"]
["袁立鹏","男","1976-04-02",null,"工程师","在岗","高性能行走机器人、液压伺服系统、高精度半实物仿真装置","常州迪华数字科技有限公司",{"$nulls":3},"袁立鹏","高性能行走机器人、液压伺服系统、高精度半实物仿真装置","常州迪华数字科技有限公司"]
["于卓伟","男","1965-08-23","院长","高级工程师","在岗","桩工机械： 机电液","北京三一智造科技有限公司",{"$nulls":3},"于卓伟","桩工机械： 机电液","北京三一智造科技有限公司"]
["金瑶兰","女","1982-10-19",null,"高级工程师","在岗","电液伺服阀研制","上海衡拓液压控制技术有限公司",{"$nulls":3},"金瑶兰","电液伺服阀研制","上海衡拓液压控制技术有限公司"]
["单东升","男","1978-10-07",null,"高级工程师","在岗","流体传动及控制、制动防抱死系统研究","宁波赛福汽车制动有限公司",{"$nulls":3},"单东升","流体传动及控制、制动防抱死系统研究","宁波赛福汽车制动有限公司"]
["王成林","男","1973-11-18",null,"工程师","在岗","玻璃成型/项目管理","旭硝子汽车玻璃（中国）有限公司",{"$nulls":3},"王成林","玻璃成型/项目管理","旭硝子汽车玻璃（中国）有限公司"]
["厉勇","男","1980-09-11",null,"工程师","在岗","超高强度钢的组织性能研究及开发","钢铁研究总院",{"$nulls":3},"厉勇","超高强度钢的组织性能研究及开发","钢铁研究总院"]
["周尚臣","男","1964-06-09",null,"高级工程师","在岗","齿轮传动设计","一重集团大连设计研究院有限公司",{"$nulls":3},"周尚臣","齿轮传动设计","一重集团大连设计研究院有限公司"]
["陈松战","男","1969-08-16",null,"高级工程师","在岗","机械设计与制造、矿山机械","中信重工机械股份有限公司",{"$nulls":3},"陈松战","机械设计与制造、矿山机械","中信重工机械股份有限公司"]
["孙嫘","女","1972-10-21","副科长","高级工程师","在岗","大型锻件自由锻造","中国第二重型机械集团公司",{"$nulls":3},"孙嫘","大型锻件自由锻造","中国第二重型机械集团公司"]
["卢云山","男","1975-02-21",null,"高级工程师","在岗","电子信息系统","康泰医学系统（秦皇岛）股份有限公司",{"$nulls":3},"卢云山","电子信息系统","康泰医学系统（秦皇岛）股份有限公司"]
["曹英强","男","1979-09-19","部长","高级工程师","在岗","锻压设备的设计与研发机械液压方向","中冶京诚工程技术有限公司北京京诚之星科技开发有限公司",{"$nulls":3},"曹英强","锻压设备的设计与研发机械液压方向","中冶京诚工程技术有限公司北京京诚之星科技开发有限公司"]
["夏志新","男","1971-05-07",null,null,"在岗","机械","秦皇岛港股份有限公司",{"$nulls":3},"夏志新","机械","秦皇岛港股份有限公司"]
["杨小川","男","1973-09-16",null,"高级工程师","在岗","港口装卸设备运行管理，装卸设备机械技术","秦皇岛港股份有限公司",{"$nulls":3},"杨小川","港口装卸设备运行管理，装卸设备机械技术","秦皇岛港股份有限公司"]
["王振宇","男","1971-09-04","副院长\r\n","高级工程师","在岗","机床设计","秦皇岛齐燕数控机床有限责任公司",{"$nulls":3},"王振宇","机床设计","秦皇岛齐燕数控机床有限责任公司"]
["翟清海","男","1955-11-08",null,"高级工程师","在岗","机电一体化","北京杰胜博瑞科技有限公司",{"$nulls":3},"翟清海","机电一体化","北京杰胜博瑞科技有限公司"]
["陈毅强","男","1972-10-09",null,"高级工程师","在岗","机械电子工程","沈阳仪表科学研究院有限公司",{"$nulls":3},"陈毅强","机电一体化，仪器科学与技术","沈阳仪表科学研究院有限公司"]
["王立海","男","1976-08-10",null,"高级工程师","在岗","机械工程","神华黄骅港务有限责任公司",{"$nulls":3},"王立海","机械工程","神华黄骅港务有限责任公司"]
["宋文亮","男","1980-06-18",null,"高级工程师","在岗","机械工程及港口设备管理维修","神华黄骅港务有限责任公司",{"$nulls":3},"宋文亮","机械工程及港口设备管理维修","神华黄骅港务有限责任公司"]
["王金祥","男","1964-11-11",null,"高级工程师","在岗","机械设计","秦皇岛天业通联重工股份有限公司",{"$nulls":3},"王金祥","机械设计","秦皇岛天业通联重工股份有限公司"]
["余发国","男","1979-08-08","副院长\r\n","高级工程师","在岗","重型数控机床开发","秦皇岛齐二数控机床有限公司",{"$nulls":3},"余发国","机械设计","齐燕数控机床有限责任公司"]
["汪大春","男","1979-02-10",null,"高级工程师","在岗","机械设计与制造","神华黄骅港务有限责任公司",{"$nulls":3},"汪大春","机械设计与制造","神华黄骅港务有限责任公司"]
["师伟","男","1983-02-19",null,"高级工程师","在岗","机械设计制造及其自动化液压系统","神华黄骅港务有限责任公司",{"$nulls":3},"师伟","机械设计制造及其自动化液压系统","神华黄骅港务有限责任公司"]
["姜明","男","1955-02-20","主任","高级工程师","在岗","机械制造及其自动化","齐齐哈尔二机床（集团）有限责任公司",{"$nulls":3},"姜明","机械制造及其自动化","齐齐哈尔二机床（集团）有限责任公司"]
["朱志华","男","1971-01-30",null,"高级工程师","在岗","技术管理、材料加工","中信戴卡轮毂制造股份有限公司",{"$nulls":3},"朱志华","技术管理、材料加工","中信戴卡轮毂制造股份有限公司"]
["陆景丽","女","1980-09-12",null,"高级工程师","在岗","技术设备","秦皇岛港股份有限公司第一港务分公司",{"$nulls":3},"陆景丽","技术设备","秦皇岛港股份有限公司第一港务分公司"]
["王月乔","男","1964-07-15","副主任","高级工程师","在岗","金属材料研究及产品开发","中国第二重型机械集团公司",{"$nulls":3},"王月乔","金属材料研究及产品开发","中国第二重型机械集团公司"]
["王绍江","男","1964-12-18",null,"高级工程师","在岗","轮毂加工设备设计制造","中信戴卡轮毂制造股份有限公司",{"$nulls":3},"王绍江","轮毂加工设备设计制造","中信戴卡轮毂制造股份有限公司"]
["徐世文","男","1968-09-18",null,"高级工程师","在岗","铝车轮设计开发","中信戴卡轮毂制造股份有限公司",{"$nulls":3},"徐世文","铝车轮设计开发","中信戴卡轮毂制造股份有限公司"]
["刘宏磊","男","1975-11-15",null,"高级工程师","在岗","铝合金汽车零部件加工工艺","中信戴卡轮毂制造股份有限公司",{"$nulls":3},"刘宏磊","铝合金汽车零部件加工工艺","中信戴卡轮毂制造股份有限公司"]
["谢静","女","1972-11-03",null,"高级工程师","在岗","难变形合金材料特性及模锻成型技术工艺","中国第二重型机械集团公司德阳万航模锻有限责任公司",{"$nulls":3},"谢静","难变形合金材料特性及模锻成型技术工艺","中国第二重型机械集团公司德阳万航模锻有限责任公司"]
["赵春章","男","1980-02-21",null,"高级工程师","在岗","先进制造技术与制造模式","中国航天科技集团公司",{"$nulls":3},"赵春章","先进制造技术与制造模式","中国航天科技集团公司"]
["彭涛","男","1979-05-21","副院长\r\n","高级工程师","在岗","冶金机械及技术、压力加工","芜湖新兴铸管有限责任公司",{"$nulls":3},"彭涛","冶金机械及技术、压力加工","芜湖新兴铸管有限责任公司"]
["郭振胜","男","1975-01-07","部长","高级工程师","在岗","轧钢设备及工艺","山东冠洲股份有限公司",{"$nulls":3},"郭振胜","轧钢设备及工艺","山东冠洲股份有限公司"]
["宋章峰","男","1967-03-12",null,"高级工程师","在岗","轧钢设备及工艺","山东冠洲股份有限公司",{"$nulls":3},"宋章峰","轧钢设备及工艺","山东冠洲股份有限公司"]
["戴勇波","男","1966-04-18",null,"高级工程师","在岗","智能装备集成设计技术，高精对接装配技术","北京星航机电装备有限公司",{"$nulls":3},"戴勇波","智能装备集成设计技术，高精对接装配技术","北京星航机电装备有限公司"]
["赵非平","男","1963-11-03",null,"高级工程师","在岗","机械制造及金属材料塑性成形","南通超力卷板机制造有限公司",{"$nulls":3},"赵非平","机械制造及金属材料塑性成形","南通超力卷板机制造有限公司"]
["李森林","男","1964-11-20",null,"高级工程师","在岗","机械制造及金属材料塑性成形","南通超力卷板机制造有限公司",{"$nulls":3},"李森林","机械制造及金属材料塑性成形","南通超力卷板机制造有限公司"]
["李昌海","男","1970-02-19",null,"高级工程师","在岗","热加工工艺研究，机械设计，铸造及设备","中信戴卡股份有限公司",{"$nulls":3},"李昌海","热加工工艺研究，机械设计，铸造及设备","中信戴卡股份有限公司"]
["黄晓光","男","1975-01-25","所长","高级工程师","在岗","机加工艺研究","中信戴卡股份有限公司",{"$nulls":3},"黄晓光","机加工艺研究","中信戴卡股份有限公司"]
["黄少兵","男","1975-09-01","副院长\r\n","高级工程师","在岗","材料、产品设计","中信戴卡股份有限公司",{"$nulls":3},"黄少兵","材料、产品设计","中信戴卡股份有限公司"]
["尹志高","男","1971-01-23","副主任","高级工程师","在岗","试验研究","中信戴卡股份有限公司",{"$nulls":3},"尹志高","试验研究","中信戴卡股份有限公司"]
["李明磊","男","1978-04-19",null,"高级工程师","在岗","铝合金车轮产品设计与开发","中信戴卡股份有限公司",{"$nulls":3},"李明磊","铝合金车轮产品设计与开发","中信戴卡股份有限公司"]
["李建新","男","1963-10-10","院长","高级工程师","在岗","钢铁冶金","河钢集团钢研总院",{"$nulls":3},"李建新","钢铁冶金","河钢集团钢研总院"]
["吝章国","男","1971-09-02","副院长\r\n","高级工程师","在岗","金属压力加工","河钢集团钢研总院",{"$nulls":3},"吝章国","金属压力加工","河钢集团钢研总院"]
["常金宝","男","1968-07-29","副院长\r\n","高级工程师","在岗",{"$f":"VLOOKUP(A67,L:O,2,0)","v":"冶金工程"},{"$f":"VLOOKUP(A67,L:N,3,0)","v":"河钢集团钢研总院"},{"$nulls":3},"常金宝","冶金工程","河钢集团钢研总院"]
["齐建军","男","1970-10-28","副院长\r\n","高级工程师","在岗","金属压力加工","河钢集团钢研总院",{"$nulls":3},"齐建军","金属压力加工","河钢集团钢研总院"]
["封一丁","男","1962-12-21","副院长\r\n","高级工程师","在岗","自动化","河钢集团钢研总院",{"$nulls":3},"封一丁","自动化","河钢集团钢研总院"]
["翟永臻","男","1967-01-16","副院长\r\n","高级工程师","在岗","钢铁冶金","河钢集团钢研总院",{"$nulls":3},"翟永臻","钢铁冶金","河钢集团钢研总院"]
["孙力","男","1969-05-05","所长","高级工程师","在岗","汽车板、家电板产品及技术","河钢集团钢研总院",{"$nulls":3},"孙力","汽车板、家电板产品及技术","河钢集团钢研总院"]
["赵英利","男","1981-05-08","主任","高级工程师","在岗","不锈钢、耐蚀合金材料及焊材的开发","河钢集团钢研总院",{"$nulls":3},"赵英利","不锈钢、耐蚀合金材料及焊材的开发","河钢集团钢研总院"]
["张瑞忠","男","1973-02-28",null,"高级工程师","在岗","连铸技术","河钢集团钢研总院",{"$nulls":3},"张瑞忠","连铸技术","河钢集团钢研总院"]
["孙中华","男","1982-03-02",null,"高级工程师","在岗","低膨胀金属材料","河钢集团钢研总院",{"$nulls":3},"孙中华","低膨胀金属材料","河钢集团钢研总院"]
["陈振业","男","1983-10-05",null,"工程师","在岗","金属复合板生产工艺及装备研究、中厚板生产工艺研究及新产品开发","河钢集团钢研总院",{"$nulls":3},"陈振业","金属复合板生产工艺及装备研究、中厚板生产工艺研究及新产品开发","河钢集团钢研总院"]
["熊自柳","男","1980-09-16",null,"高级工程师","在岗","汽车板研发及应用","河钢集团钢研总院",{"$nulls":3},"熊自柳","汽车板研发及应用","河钢集团钢研总院"]
["伊成志","男","1979-12-11",null,"高级工程师","在岗","轧钢设备","秦皇岛首秦金属材料有限公司",{"$nulls":3},"伊成志","轧钢设备","秦皇岛首秦金属材料有限公司"]
["俞宏福","男","1962-12-04",null,"高级工程师","在岗","工程机械","三一重机有限公司",{"$nulls":3},"俞宏福","工程机械","三一重机有限公司"]
["曹东辉","男","1959-03-31","院长","高级工程师","在岗","工程机械、流体传动","三一重机有限公司",{"$nulls":3},"曹东辉","工程机械、流体传动","三一重机有限公司"]
["黄有泉","男","1970-10-13",null,"高级工程师","在岗","油气田开发","大庆油田有限责任公司第五采油厂",{"$nulls":3},"黄有泉","油气田开发","大庆油田有限责任公司第五采油厂"]
["王清平","男","1966-05-20",null,"高级工程师","在岗","油气田开发","大庆油田有限责任公司第五采油厂",{"$nulls":3},"王清平","油气田开发","大庆油田有限责任公司第五采油厂"]
["封存利","男","1970-11-23",null,"高级工程师","在岗","机械工程","焦作市森格高新材料有限责任公司",{"$nulls":3},"封存利","机械工程","焦作市森格高新材料有限责任公司"]
["刘中贤","男","1962-09-18",null,"高级工程师","在岗","机械工程、建筑工程","秦皇岛市中贤幕墙装饰工程有限公司",{"$nulls":3},"刘中贤","机械工程、建筑工程","秦皇岛市中贤幕墙装饰工程有限公司"]
["蒋玉君","女","1962-02-01",null,"高级工程师","在岗","工业工程","秦皇岛市中贤幕墙装饰工程有限公司",{"$nulls":3},"蒋玉君","工业工程","秦皇岛市中贤幕墙装饰工程有限公司"]
["刘燕","女","1987-11-11",null,"工程师","在岗","机械工程、建筑工程","秦皇岛市中贤幕墙装饰工程有限公司",{"$nulls":3},"刘燕","机械工程、建筑工程","秦皇岛市中贤幕墙装饰工程有限公司"]
["蒋皎","男","1983-08-24",null,"工程师","在岗","机械工程、建筑工程","秦皇岛市中贤幕墙装饰工程有限公司",{"$nulls":3},"蒋皎","机械工程、建筑工程","秦皇岛市中贤幕墙装饰工程有限公司"]
["黄增","男","1968-01-02","副主任","研究员","在岗","液压伺服阀","中船重工集团公司第七零四研究所",{"$nulls":3},"黄增","液压伺服阀","中船重工集团公司第七〇四研究所/上海衡拓液压控制技术有限公司"]
["孙明月","男","1980-10-06",null,"研究员","在岗","厚大断面金属热成形数值模拟和工艺设计","中国科学院金属研究所",{"$nulls":3},"孙明月","厚大断面金属热成形数值模拟和工艺设计","中国科学院金属研究所"]
["周玉生","男","1970-06-07",null,"高级工程师","在岗","烟草设备与工艺","秦皇岛烟草机械有限责任公司",{"$nulls":3},"周玉生","烟草设备与工艺","秦皇岛烟草机械有限责任公司"]
["张尚斌","男","1982-09-29",null,"高级工程师","在岗","冶金设备及其自动化控制","二重集团（德阳）重型装备股份有限公司",{"$nulls":3},"张尚斌","冶金设备及其自动化控制","二重集团（德阳）重型装备股份有限公司"]
["王大江","男","1982-05-09",null,"高级工程师","在岗","工程机械机电系统的研究","秦皇岛天业通联重工科技有限公司",{"$nulls":3},"王大江","工程机械机电系统的研究","秦皇岛天业通联重工科技有限公司"]
["冯扶民","男","1966-11-10",null,"高级工程师","在岗","机械设计","秦皇岛天业通联重工科技有限公司",{"$nulls":3},"冯扶民","机械设计","秦皇岛天业通联重工科技有限公司"]
["牛跃伟","男","1978-03-12","部长","高级工程师","在岗","港口机械设备技术管理","秦港股份第九分公司供水除尘部",{"$nulls":3},"牛跃伟","港口机械设备技术管理","秦港股份第九分公司供水除尘部"]
["单东升","男","1978-10-07",null,null,"在岗","流体传动及控制、制动防抱死系统研究","宁波赛福汽车制动有限公司",{"$nulls":3},"单东升","机电液一体化","宁波赛福汽车制动有限公司"]
["段艳宾","男","1983-06-26",null,"高级工程师","在岗","机器人技术、机电装备设计","中国电子科技集团公司第五十四研究所",{"$nulls":3},"段艳宾","机器人技术、机电装备设计","中国电子科技集团公司第五十四研究所"]
["窦玉超","男","1983-11-13",null,"高级工程师","在岗","机器人技术、伺服控制","中国电子科技集团公司第五十四研究所",{"$nulls":3},"窦玉超","机器人技术、伺服控制","中国电子科技集团公司第五十四研究所"]
["葛俊礼","男","1985-03-25",null,"高级工程师","在岗","机械设计","河北港口集团港口机械有限公司",{"$nulls":3},"葛俊礼","机械设计","河北港口集团港口机械有限公司"]
["孙瑞辉","男","1982-04-06","主任","工程师","在岗","比例多路阀","上海诺玛液压系统有限公司",{"$nulls":3},"孙瑞辉","比例多路阀","上海诺玛液压系统有限公司"]
["吴柳杰","男","1989-04-08",null,"工程师","在岗","液压系统开发及控制","宁波赛福汽车制动有限公司",{"$nulls":3},"吴柳杰","液压系统开发及控制","宁波赛福汽车制动有限公司"]
["牛慧峰","男","1977-01-30",null,"高级工程师","在岗","工程机械液压系统设计、测试","北京中车重工机械有限公司",{"$nulls":3},"牛慧峰","工程机械液压系统设计、测试","北京中车重工机械有限公司"]
["孙炳玉","男","1980-11-11",null,"工程师","在岗","机械电子工程","江苏恒力液压股份有限公司",{"$nulls":3},"孙炳玉","机械电子工程","江苏恒力液压股份有限公司"]
["史向东","男","1968-02-01","院长","高级工程师","在岗","系统控制、流体传动","力源液压（苏州）有限公司",{"$nulls":3},"史向东","系统控制、流体传动","力源液压（苏州）有限公司"]
["王国山","男","1962-09-24",null,"高级工程师","在岗","材料成形","秦皇岛方华埃西姆机械有限公司",{"$nulls":3},"王国山","材料成形","秦皇岛方华埃西姆机械有限公司"]
["王孝建","男","1971-02-01","副所长","高级工程师","在岗","材料焊接及冷轧产品工艺技术","宝钢股份上海梅山钢铁股份有限公司技术中心",{"$nulls":3},"王孝建","材料焊接及冷轧产品工艺技术","宝钢股份上海梅山钢铁股份有限公司技术中心"]
["贾锋","男","1981-12-07","部长","高级工程师","在岗","轧钢、新能源","大连华锐重工集团股份有限公司",{"$nulls":3},"贾锋","轧钢、新能源","大连华锐重工集团股份有限公司"]
["侯英武","男","1976-11-01",null,"高级工程师","在岗","冶金热能与动力","北京圣兆科技开发有限公司",{"$nulls":3},"侯英武","冶金热能与动力","北京圣兆科技开发有限公司"]
["刘鑫","男","1979-11-25",null,"高级工程师","在岗","机械工程","首钢京唐钢铁联合有限责任公司",{"$nulls":3},"刘鑫","机械工程","首钢京唐钢铁联合有限责任公司"]
["范秀斌","男","1979-09-22",null,"研究员","在岗","非标装备设计，数字化设计制造一体化","北京星航机电装备有限公司",{"$nulls":3},"范秀斌","非标装备设计，数字化设计制造一体化","北京星航机电装备有限公司"]
["秦鹤勇","男","1980-04-20",null,"高级工程师","在岗","高温合金","北京钢研高纳科技股份有限公司",{"$nulls":3},"秦鹤勇","高温合金","北京钢研高纳科技股份有限公司"]
["韩伟","男","1980-11-04","副部长","高级工程师","在岗","港口机械维护管理","秦皇岛港股份有限公司第九港务分公司",{"$nulls":3},"韩伟","港口机械维护管理","秦皇岛港股份有限公司第九港务分公司"]
["钱涛","男","1962-12-29",null,null,"在岗","高端涂层设计及装备","星弧涂层新材料科技（苏州）股份有限公司",{"$nulls":3},"钱涛","高端涂层设计及装备","星弧涂层新材料科技（苏州）股份有限公司"]
["靳永波","男","1989-03-03",null,"高级工程师","在岗","高强钢成形工艺研发","石家庄高强金属制品有限公司",{"$nulls":3},"靳永波","高强钢成形工艺研发","石家庄高强金属制品有限公司"]
["李建","男","1985-01-03",null,"高级工程师","在岗","轮毂成形设备及工艺研发","秦皇岛燕大现代集成制造技术开发有限公司",{"$nulls":3},"李建","轮毂成形设备及工艺研发","秦皇岛燕大现代集成制造技术开发有限公司"]
["王久增","男","1976-03-03","科长","高级工程师","在岗","交通机电工程","唐山市唐港高速公路管理处",{"$nulls":3},"王久增","交通机电工程","唐山市唐港高速公路管理处"]
["刘建芳","男","1979-07-24",null,"高级工程师","在岗","轻量化汽车零部件设计制造","秦皇岛市戴卡兴龙轮毂有限公司",{"$nulls":3},"刘建芳","轻量化汽车零部件设计制造","秦皇岛市戴卡兴龙轮毂有限公司"]
["包汉生","男","1979-06-15","主任","高级工程师","在岗","能源用钢及耐热合金","钢铁研究总院",{"$nulls":3},"包汉生","能源用钢及耐热合金","钢铁研究总院"]
["刘培勇","男","1979-06-01",null,"高级工程师","在岗","桥梁施工装备及特种运输车辆","秦皇岛天业通联重工科技有限公司",{"$nulls":3},"刘培勇","桥梁施工装备及特种运输车辆","秦皇岛天业通联重工科技有限公司"]
["李鑫磊","男","1982-10-31",null,"高级工程师","在岗","材料成型、汽车底盘模块化、新能源汽车关键技术","中信戴卡股份有限公司工程技术研究院",{"$nulls":3},"李鑫磊","材料成型、汽车底盘模块化、新能源汽车关键技术","中信戴卡股份有限公司工程技术研究院"]
["何保卫","男","1983-06-27",null,"高级工程师","在岗","冶金机械的设计、开发和研究","中国重型机械研究院股份公司",{"$nulls":3},"何保卫","冶金机械的设计、开发和研究","中国重型机械研究院股份公司"]
["史学亮","男","1984-10-08",null,"高级工程师","在岗","连铸设备及工艺","中国重型机械研究院股份公司",{"$nulls":3},"史学亮","连铸设备及工艺","中国重型机械研究院股份公司"]
["么玉林","男","1967-04-12",null,"高级工程师","在岗","轧钢电气自动化、冷轧工艺技术、冷轧设备的关键技术","唐山钢铁集团有限责任公司冷轧薄板厂",{"$nulls":3},"么玉林","轧钢电气自动化、冷轧工艺技术、冷轧设备的关键技术","唐山钢铁集团有限责任公司冷轧薄板厂"]
["高琦","男","1978-02-10",null,"高级工程师","在岗","连铸核心技术研发","中国重型机械研究院股份公司",{"$nulls":3},"高琦","连铸核心技术研发","中国重型机械研究院股份公司"]
["董悫","男","1983-12-10",null,"高级工程师","在岗","空间机器人、航天器智能装配","北京卫星环境工程研究所",{"$nulls":3},"董悫","空间机器人、航天器智能装配","北京卫星环境工程研究所"]
["隆昌宇","男","1988-06-11",null,"高级工程师","在岗","大尺寸精密测量","北京卫星环境工程研究所",{"$nulls":3},"隆昌宇","大尺寸精密测量","北京卫星环境工程研究所"]
["徐波涛","男","1982-06-28","副主任","高级工程师","在岗","航天器总装技术","北京卫星环境工程研究所",{"$nulls":3},"徐波涛","航天器总装技术","北京卫星环境工程研究所"]
["胡瑞钦","男","1988-07-29","副主任","高级工程师","在岗","机器人装配技术","北京卫星环境工程研究所",{"$nulls":3},"胡瑞钦","机器人装配技术","北京卫星环境工程研究所"]
["代海林","男","1986-08-24","副主任","高级工程师","在岗","航天器总装技术","北京卫星环境工程研究所",{"$nulls":3},"代海林","航天器总装技术","北京卫星环境工程研究所"]
["孟少华","男","1985-11-19","副主任","高级工程师","在岗","机器人装配技术","北京卫星环境工程研究所",{"$nulls":3},"孟少华","机器人装配技术","北京卫星环境工程研究所"]
["李凌云","男","1981-04-28","部长","高级工程师","在岗","设备管理、安全管理","秦港股份九分公司装船部",{"$nulls":3},"李凌云","设备管理、安全管理","秦港股份九分公司装船部"]
["祁玉龙","男","1982-12-09",null,"高级工程师","在岗","工程机械","江苏徐工工程机械研究院有限公司",{"$nulls":3},"祁玉龙","工程机械","江苏徐工工程机械研究院有限公司"]
["朱学斌","男","1974-10-26",null,"高级工程师","在岗",{"$f":"VLOOKUP(A131,L:O,2,0)","v":"特种车辆"},{"$f":"VLOOKUP(A131,L:N,3,0)","v":"泰安航天特种车有限公司"},{"$nulls":3},"朱学斌","特种车辆","泰安航天特种车有限公司"]
["杨广文","男","1963-01-07","副主任","高级工程师","在岗","流体传动与控制、机械制造工艺与装备","北京华德液压工业集团有限责任公司",{"$nulls":3},"杨广文","流体传动与控制、机械制造工艺与装备","北京华德液压工业集团有限责任公司"]
["杨超","男","1980-01-19",null,null,"在岗","流体传动与控制、流体机械","秦皇岛照见生物科技有限公司",{"$nulls":3},"杨超","流体传动与控制、流体机械","秦皇岛照见生物科技有限公司"]
["林广","男","1961-03-24",null,"高级工程师","在岗","液压元件系统及电液比例技术、液压比例阀测试标准方法","油威力液压科技股份有限公司",{"$nulls":3},"林广","液压元件系统及电液比例技术、液压比例阀测试标准方法","油威力液压科技股份有限公司"]
["张璐","男","1982-06-26",null,"高级工程师","在岗","机械设备电液控制系统的设计与开发","北京汇志博远机电科技有限公司",{"$nulls":3},"张璐","机械设备电液控制系统的设计与开发","北京汇志博远机电科技有限公司"]
["刘剑","男","1981-08-16","主任","高级工程师","在岗","机械工程","郑州新大方重工科技有限公司",{"$nulls":3},"刘剑","机械工程","郑州新大方重工科技有限公司"]
["韩丽丽","女","1980-12-12","主任","高级工程师","在岗","特种起重机及设备智能管理系统研发","郑州新大方重工科技有限公司",{"$nulls":3},"韩丽丽","特种起重机及设备智能管理系统研发","郑州新大方重工科技有限公司"]
["戴建军","男","1983-02-19","部长","工程师","在岗","重型运输车液压及控制技术","江苏海鹏特种车辆有限公司",{"$nulls":3},"戴建军","重型运输车液压及控制技术","江苏海鹏特种车辆有限公司"]
["周静辉","男","1978-11-23",null,"高级工程师","在岗","机械设计及自动化","上海灵钥机械设计有限公司",{"$nulls":3},"周静辉","机械设计及自动化","上海灵钥机械设计有限公司"]
["王智勇","男","1978-06-15",null,"高级工程师","在岗","机械电子工程","秦皇岛汇志思凯机械设备有限公司",{"$nulls":3},"王智勇","机械电子工程","秦皇岛汇志思凯机械设备有限公司"]
["郑大周","男","1981-12-20","主任","高级工程师","在岗","风电机组设计","东方电气集团东方风电有限公司",{"$nulls":3},"郑大周","风电机组设计","东方电气集团东方风电有限公司"]
["张志华","男","1962-09-20",null,"高级工程师","在岗","机械工程","郑州新大方重工科技有限公司",{"$nulls":3},"张志华","机械工程","郑州新大方重工科技有限公司"]
["吴延江","男","1972-08-16","书记","高级工程师","在岗","设备工程与管理","中铁二十二局集团第二工程有限公司",{"$nulls":3},"吴延江","设备工程与管理","中铁二十二局集团第二工程有限公司"]
["杜以军","男","1970-06-19",null,"高级工程师","在岗","机械设计及制造","中铁二十二局集团第二工程有限公司",{"$nulls":3},"杜以军","机械设计及制造","中铁二十二局集团第二工程有限公司"]
["漆小虎","男","1971-11-07","院长","高级工程师","在岗","冶金轧制设备及工艺领域","二重（德阳）中兴装备有限公司",{"$nulls":3},"漆小虎","冶金轧制设备及工艺领域","二重（德阳）中兴装备有限公司"]
["吕晓江","男","1982-01-17",null,"工程技术人员","在岗","车辆安全技术开发，弱势道路使用者保护技术开发","吉利汽车研究院（宁波）有限公司",{"$nulls":3},"吕晓江","车辆安全技术开发，弱势道路使用者保护技术开发","吉利汽车研究院（宁波）有限公司"]
["张彪","男","1980-09-01",null,"副研究员","在岗","车辆工程 新能源汽车电子控制系统","唐山海荣机器人应用技术研究院",{"$nulls":3},"张彪","车辆工程 新能源汽车电子控制系统","唐山海荣机器人应用技术研究院"]
["王云祥","男","1982-04-05",null,null,"在岗","轧制","河北省乐亭县商务和投资促进局",{"$nulls":3},"王云祥","轧制","河北省乐亭县商务和投资促进局"]
["令狐克志","男","1978-02-06",null,"高级工程师","在岗","轧钢板型控制","河钢集团唐钢公司技术中心",{"$nulls":3},"令狐克志","轧钢板型控制","河钢集团唐钢公司技术中心"]
["李保永","男","1984-10-02",null,"高级工程师","在岗","轻量化结构精密塑性成形","北京航星机械制造有限公司精密塑性成形",{"$nulls":3},"李保永","轻量化结构精密塑性成形","北京航星机械制造有限公司精密塑性成形"]
["何凯","男","1972-09-05","主任","高级工程师","在岗","金属成形技术及装备","中科院深圳先进技术研究院",{"$nulls":3},"何凯","金属成形技术及装备","中科院深圳先进技术研究院"]
["张军","男","1981-09-02",null,"工程师","在岗","车辆工程","江西吉利新能源商用车有限公司",{"$nulls":3},"张军","车辆工程","江西吉利新能源商用车有限公司"]
["刘永","男","1987-04-10","副主任","工程师","在岗","智能装备及精密成型研究","航天晨光上海分公司",{"$nulls":3},"刘永","智能装备及精密成型研究","航天晨光上海分公司"]
["张寅","男","1979-09-20",null,"副教授","在岗","机械电子及控制","河北鹏远光电股份有限公司",{"$nulls":3},"张寅","机械电子及控制","河北鹏远光电股份有限公司"]
["梁爽","男","1982-02-16",null,"高级工程师","在岗","飞机总体设计","成都飞机工业（集团）有限责任公司",{"$nulls":3},"梁爽","飞机总体设计","成都飞机工业（集团）有限责任公司"]
["耿彦波","男","1982-03-19","所长","高级工程师","在岗","新产品开发、整机设计匹配","江苏徐工工程机械研究院有限公司",{"$nulls":3},"耿彦波","新产品研发","江苏徐工工程机械研究院有限公司"]
["邱孜学","男","1963-10-01",null,"高级工程师","在岗","特种工程塑料（主要是聚酰亚胺类）配方设计及制作","上海市合成树脂研究所有限公司",{"$nulls":3},"邱孜学","特种工程塑料（聚酰亚胺模塑料）","上海市合成树脂研究所有限公司"]
["蔺鸿达","男","1974-12-08","副主任","高级工程师","在岗","客运索道检验检测","国家客运架空索道安全监督检验中心",{"$nulls":3},"蔺鸿达","客运索道检验检测","国家客运架空索道安全监督检验中心"]
["刘靖宝","男","1983-05-09","科长","高级工程师","在岗","材料加工","河钢集团唐钢公司技术中心",{"$nulls":3},"刘靖宝","材料加工工程","河钢集团唐钢公司技术中心"]
["刘晓","男","1986-05-17",null,"高级工程师","在岗","交通智能装备 机电一体化","山西交通科学研究院集团有限公司",{"$nulls":3},"刘晓","交通智能装备 机电一体化","山西交通科学研究院集团有限公司"]
["马博","男","1982-11-17",null,"高级工程师","在岗","冶金机械装备设计","一重集团大连工程技术有限公司",{"$nulls":3},"马博","冶金机械装备设计","一重集团大连工程技术有限公司"]
["李所军","男","1971-10-29",null,"高级工程师","在岗","空间宇航机构，舰船动力控制","中国船舶集团有限公司第703研究所",{"$nulls":3},"李所军","空间宇航机构，舰船动力控制","中国船舶集团有限公司第703研究所"]
["苏兴振","男","1977-01-04",null,"工程师","在岗","机电工程（设备）","中信戴卡股份有限公司",{"$nulls":3},"苏兴振","机电工程（设备）","中信戴卡股份有限公司"]
["张焰明","男","1982-04-02","主任","高级工程师","在岗","工程机械液压系统设计及应用","北京中车重工机械有限公司",{"$nulls":3},"张焰明","工程机械液压系统设计及应用","北京中车重工机械有限公司"]
["刘立志","男","1977-09-14",null,"高级工程师","在岗","工程机械液压系统设计及应用","秦皇岛天业通联重工科技有限公司",{"$nulls":3},"刘立志","工程机械液压系统设计及应用","秦皇岛天业通联重工科技有限公司"]
["徐振威","男","1981-05-15",null,"高级工程师","在岗","机电一体化系统开发和应用","绝味食品股份有限公司",{"$nulls":3},"徐振威","机电一体化系统开发和应用","绝味食品股份有限公司"]
["李永辉","男","1981-07-20",null,"高级工程师","在岗","设备技术开发","中国重型机械研究院股份有限公司",{"$nulls":3},"李永辉","设备技术开发","中国重型机械研究院股份有限公司"]
["田伟强","男","1984-11-21",null,"高级工程师","在岗","轨道装备","中铁山桥集团有限公司",{"$nulls":3},"田伟强","轨道装备","中铁山桥集团有限公司"]
["徐利璞","男","1984-11-25",null,"高级工程师","在岗","板带轧制装备","中国重型机械研究院股份有限公司",{"$nulls":3},"徐利璞","板带轧制装备","中国重型机械研究院股份有限公司"]
["张强","男","1976-12-02","主任","高级工程师","在岗","客运索道安全管理、安全检验","国家客运架空索道安全监督检验中心",{"$nulls":3},"张强","客运索道安全管理、安全检验","国家客运架空索道安全监督检验中心"]
["赵德利","男","1981-12-16",null,"高级工程师","在岗","锻件材料研发及工艺","天津重型装备研究有限公司",{"$nulls":3},"赵德利","锻件材料研发及工艺","天津重型装备研究有限公司"]
["常海平","男","1978-09-20","所长","高级工程师","在岗","车轮设计、工艺及装备","中信戴卡股份有限公司",{"$nulls":3},"常海平","车轮设计、工艺及装备","中信戴卡股份有限公司"]
["郭松旺","男","1980-03-20",null,"工程师","在岗","饮料包装技术与自动化","达能（中国）食品饮料有限公司",{"$nulls":3},"郭松旺","饮料包装技术与自动化","达能（中国）食品饮料有限公司"]
["靳国兴","男","1973-10-01",null,"工程师","在岗","食品机械机电一体化集成","达能（中国）食品饮料有限公司",{"$nulls":3},"靳国兴","食品机械机电一体化集成","达能（中国）食品饮料有限公司"]
["景群平","男","1974-10-21",null,"高级工程师","在岗","机械制造及其自动化","中国重型机械研究院股份公司",{"$nulls":3},"景群平","机械制造及其自动化","中国重型机械研究院股份公司"]
["袁立鹏","男","1976-04-02",null,"工程师","在岗","高性能行走机器人、液压伺服系统、高精度半实物仿真装置","常州迪华数字科技有限公司",{"$nulls":3},"袁立鹏","高性能行走机器人，液压伺服系统，高精度半实物仿真装置","常州迪化数字科技有限公司"]
["邝霜","男","1981-09-22","副主任","高级工程师","在岗","材料加工工程","河钢集团唐钢公司技术中心",{"$nulls":3},"邝霜","材料加工工程","河钢集团唐钢公司技术中心"]
["于卓伟","男","1965-08-23","院长","高级工程师","在岗","桩工机械： 机电液","北京三一智造科技有限公司",{"$nulls":3},"于卓伟","桩工机械： 机电液","北京三一智造科技有限公司"]
["杜雄","男","1972-05-24","副主任","高级工程师","在岗","静压支承技术、电主轴设计","上海机床厂有限公司",{"$nulls":3},"杜雄","静压支承技术、电主轴设计","上海机床厂有限公司"]
["王亮","男","1980-05-29","主任",null,"在岗","飞行器数字化制造技术与装备研发","北京星航机电装备有限公司",{"$nulls":3},"王亮","飞行器数字化制造技术与装备研发","北京星航机电装备有限公司"]
["李永亮","男","1984-04-10",null,"高级工程师","在岗","轧制","河钢唐钢技术中心",{"$nulls":3},"李永亮","轧制","河钢唐钢技术中心"]
["汪云辉","男","1984-11-06","主任","高级工程师","在岗","轧制","河钢唐钢技术中心",{"$nulls":3},"汪云辉","轧制","河钢唐钢技术中心"]
["张伟","男","1967-10-17","副处长","高级工程师","在岗","机械制造工程技术","河钢唐钢集团重机装备有限公司",{"$nulls":3},"张伟","机械制造工程技术","河钢唐钢集团重机装备有限公司"]
["陈赞","男","1987-01-25",null,"工程师","在岗","汽车/摩托车车辆防抱死制动系统","宁波燕清汽车技术有限公司",{"$nulls":3},"陈赞","汽车/摩托车车辆防抱死制动系统","宁波燕清汽车技术有限公司"]
["谢作建","男","1989-09-17","部长","工程师","在岗","刹车伺服阀","上海衡拓液压控制技术有限公司",{"$nulls":3},"谢作建","刹车伺服阀","上海衡拓液压控制技术有限公司"]
["张永超","男","1984-10-12","部长","工程师","在岗","起重机械及高空机械设计","江苏宏昌天马物流装备有限公司",{"$nulls":3},"张永超","起重机械及高空机械设计","江苏宏昌天马物流装备有限公司"]
["唐启敬","男","1983-11-20",null,"高级工程师","在岗","雷达结构设计","上海航天电子技术研究所",{"$nulls":3},"唐启敬","雷达结构设计","上海航天电子技术研究所"]
["罗许","男","1982-10-30",null,"高级工程师","在岗","材料加工工艺研究","攀钢集团研究院有限公司",{"$nulls":3},"罗许","材料加工工艺研究","攀钢集团研究院有限公司"]
["高永操","男","1980-01-20",null,"高级工程师","在岗","航空航天油泵研发","八环集团浙江环誉泵业科技有限公司",{"$nulls":3},"高永操","航空航天油泵研发","八环集团浙江环誉泵业科技有限公司"]
["俞继印","男","1980-04-05",null,"高级工程师","在岗","注塑机液压系统","海天塑机集团有限公司",{"$nulls":3},"俞继印","注塑机液压系统","海天塑机集团有限公司"]
["戴国平","男","1979-06-24",null,"高级工程师","在岗","液压设计","海天塑机集团有限公司",{"$nulls":3},"戴国平","液压设计","海天塑机集团有限公司"]
["刘得龙","男",null,"主任","主任医师","在岗","耳鼻咽喉科学的基础与临床研究","大连市中心医院",{"$nulls":3},"刘得龙","耳鼻咽喉科学的基础与临床研究","大连市中心医院"]
["张英富","男","1984-02-14","部长","工程师","在岗","底盘系统开发及控制研究","长城汽车股份有限公司",{"$nulls":3},"张英富","底盘系统开发及控制研究","长城汽车股份有限公司"]
["句彦儒","男","1984-02-22",null,"高级工程师","在岗","汽车振动噪声","长城汽车股份有限公司",{"$nulls":3},"句彦儒","汽车振动噪声","长城汽车股份有限公司"]
["柴立平","女","1989-06-05",null,null,"在岗",{"$f":"VLOOKUP(A195,L:O,2,0)","v":"部门运营与人员管理；骨科内植产品理念、结构及法规研究"},{"$f":"VLOOKUP(A195,L:N,3,0)","v":"河北瑞鹤医疗器械有限公司"},{"$nulls":3},"柴立平","部门运营与人员管理；骨科内植产品理念、结构及法规研究","河北瑞鹤医疗器械有限公司"]
["苑飞虎","男","1986-01-17",null,"工程师","在岗","机器人技术与应用","上海朱光亚战略科技研究院",{"$nulls":3},"苑飞虎","机器人技术与应用","上海朱光亚战略科技研究院"]
["卢勇","男",null,"系总支书记","高级工程师","在岗","航天特种玻璃加工","秦皇岛星箭特种玻璃有限公司",{"$nulls":3},"卢勇","航天特种玻璃加工","秦皇岛星箭特种玻璃有限公司"]
["丁国智","男","1981-08-30","主任","研究员","在岗","飞行器制造、智能制造","北京星航机电装备有限公司",{"$nulls":3},"丁国智","飞行器制造、智能制造","北京星航机电装备有限公司"]
["王旭升","男","1968-02-12",null,"高级工程师","在岗","机器人及人工智能","廊坊瑞立达智能机器有限公司",{"$nulls":3},"王旭升","机器人及人工智能","廊坊瑞立达智能机器有限公司"]
["李长明","男","1974-07-12",null,"高级工程师","在岗","机械产品设计","秦皇岛弘和机械有限责任公司",{"$nulls":3},"李长明","机械产品设计","秦皇岛弘和机械有限责任公司"]
["赵铁勇","男","1982-06-02",null,"高级工程师","在岗","高精度不锈钢管冷轧设备","中国重型机械研究院股份公司",{"$nulls":3},"赵铁勇","高精度不锈钢管冷轧设备","中国重型机械研究院股份公司"]
["袁国明","男","1963-09-30",null,"高级工程师","在岗","高端装备研发设计","一重集团大连工程技术有限公司",{"$nulls":3},"袁国明","高端装备研发设计","一重集团大连工程技术有限公司"]
["马小英","男","1984-05-07",null,"高级工程师","在岗","汽车零部件热成型工艺研究","中信戴卡股份有限公司",{"$nulls":3},"马小英","汽车零部件热成型工艺研究","中信戴卡股份有限公司"]
["张少坤","男","1985-09-02",null,"高级工程师","在岗","冷轧设备及工艺","一重集团大连工程技术有限公司",{"$nulls":3},"张少坤","冷轧设备及工艺","一重集团大连工程技术有限公司"]
["翟进坡","男","1980-02-22",null,"高级工程师","在岗","材料科学与工程","唐山市德龙钢铁有限公司",{"$nulls":3},"翟进坡","材料科学与工程","唐山市德龙钢铁有限公司"]
["王德全","男","1972-04-10",null,"工程师","在岗","钢铁冶金","唐山市德龙钢铁有限公司",{"$nulls":3},"王德全","钢铁冶金","唐山市德龙钢铁有限公司"]
["陈志立","男","1971-10-22",null,"高级工程师","在岗","轧钢设备及工艺","唐山市德龙钢铁有限公司",{"$nulls":3},"陈志立","轧钢设备及工艺","唐山市德龙钢铁有限公司"]
["莫安军","男","1982-10-28",null,"高级工程师","在岗","航空用大型负责钛合金锻件形性协同控制研究及大型复杂模具工装设计制造","中国二重万航模锻公司",{"$nulls":3},"莫安军","航空用大型负责钛合金锻件形性协同控制研究及大型复杂模具工装设计制造","中国二重万航模锻公司"]
["孙朝远","男","1986-04-24",null,"工程师","在岗","钛合金、高温合金等难变形合金塑性成形研究","中国二重万航模锻公司",{"$nulls":3},"孙朝远","钛合金、高温合金等难变形合金塑性成形研究","中国二重万航模锻公司"]
["段玮","男","1980-08-16",null,"工程师","在岗","弹药类军工产品开发","秦皇岛瀚丰长白科技有限责任公司",{"$nulls":3},"段玮","弹药类军工产品开发","秦皇岛瀚丰长白科技有限责任公司"]
["李强","男","1983-11-05",null,"高级工程师","在岗","机械设计及制造","秦皇岛瀚丰长白科技有限责任公司",{"$nulls":3},"李强","机械设计及制造","秦皇岛瀚丰长白科技有限责任公司"]
["姚庆","男","1979-10-18","部长","高级工程师","在岗","连铸设备非标设计及机械制造工艺","秦皇岛瀚丰长白科技有限责任公司",{"$nulls":3},"姚庆","连铸设备非标设计及机械制造工艺","秦皇岛瀚丰长白科技有限责任公司"]
["朱仲文","男","1988-05-04",null,"高级工程师","在岗","新能源汽车、燃料电池汽车技术","中汽研扬州汽车工程研究院有限公司",{"$nulls":3},"朱仲文","新能源汽车、燃料电池汽车技术","中汽研扬州汽车工程研究院有限公司"]
["王振峰","男",null,null,"高级工程师","在岗","智能车辆动力学及控制","中汽研（天津）扬州汽车工程研究所有限公司",{"$nulls":3},"王振峰","智能车辆动力学及控制","中汽研（天津）扬州汽车工程研究所有限公司"]
["颜家勇","男","1985-07-13",null,"高级工程师","在岗","航天器在轨制造、在轨组装及测试技术","北京卫星制造厂有限公司",{"$nulls":3},"颜家勇","航天器在轨制造、在轨组装及测试技术","北京卫星制造厂有限公司"]
["杨东升","男","1986-10-11",null,"高级工程师","在岗","流体机械设计及分析技术","北京卫星制造厂有限公司",{"$nulls":3},"杨东升","流体机械设计及分析技术","北京卫星制造厂有限公司"]
["朱军来","男","1990-10-07",null,"工程师","在岗","汽车，医疗行业非标自动化设备研发","上海灵钥机电科技发展有限公司",{"$nulls":3},"朱军来","汽车，医疗行业非标自动化设备研发","上海灵钥机电科技发展有限公司"]
["李乐之","男","1992-07-23",null,"工程师","在岗","机械结构设计","上海灵钥机电科技发展有限公司",{"$nulls":3},"李乐之","机械结构设计","上海灵钥机电科技发展有限公司"]
["胡中望","男","1975-10-25","所长","高级工程师","在岗","港口机械液压系统、无人驾驶跨运车装备","上海振华重工（集团）股份有限公司",{"$nulls":3},"胡中望","港口机械液压系统、无人驾驶跨运车装备","上海振华重工（集团）股份有限公司"]
["宋豫","男","1986-09-12",null,"高级工程师","在岗","港口装备流体转动及控制","上海振华重工（集团）股份有限公司",{"$nulls":3},"宋豫","港口装备流体转动及控制","上海振华重工（集团）股份有限公司"]
["杨书华","男","1985-11-12",null,"高级工程师","在岗","液压技术","新乡航空工业（集团）有限公司116厂",{"$nulls":3},"杨书华","液压技术","新乡航空工业（集团）有限公司116厂"]
["李磊","男","1980-07-05","副主任","高级工程师","在岗","污染控制","新乡航空工业集团有限公司",{"$nulls":3},"李磊","污染控制","新乡航空工业集团有限公司"]
["祖立正","男","1984-09-23",null,"工程师","在岗","航空机载液压附件","新乡航空工业（集团）有限公司",{"$nulls":3},"祖立正","航空机载液压附件","新乡航空工业（集团）有限公司"]
["裴有志","男","1975-12-05",null,"高级工程师","在岗","军用飞机维修机械专业","中国人民解放军第五七二一工厂",{"$nulls":3},"裴有志","军用飞机维修机械专业","中国人民解放军第五七二一工厂"]
["杨永","男","1985-06-16","主任","高级工程师","在岗","飞机维修","中国人民解放军第五七二一工厂",{"$nulls":3},"杨永","飞机维修","中国人民解放军第五七二一工厂"]
["刘航","男","1974-12-05",null,"高级工程师","在岗","飞机维修","中国人民解放军第五七二一工厂",{"$nulls":3},"刘航","飞机维修","中国人民解放军第五七二一工厂"]
["王鑫玮","男","1982-05-20",null,"高级工程师","在岗","飞机维修","中国人民解放军第五七二一工厂",{"$nulls":3},"王鑫玮","飞机维修","中国人民解放军第五七二一工厂"]
["龚方友","男","1978-08-09","副主任","研究员","在岗","海工装备机电液系统研究","中国船舶集团公司第七一五研究所",{"$nulls":3},"龚方友","海工装备机电液系统研究","中国船舶集团公司第七一五研究所"]
["董朋鹏","男","1986-05-13",null,"高级工程师","在岗","机械电子工程；海洋工程装备液压系统研发及故障诊断","中国船舶集团公司第七一五研究所",{"$nulls":3},"董朋鹏","机械电子工程；海洋工程装备液压系统研发及故障诊断","中国船舶集团公司第七一五研究所"]
["何凯","男","1972-09-05","主任","高级工程师","在岗","金属成形技术及装备","中科院深圳先进技术研究院",{"$nulls":3},"何凯","机械工程、精密制造及自动化技术、工业机器人等","中科院深圳先进技术研究院"]
["苏胜伟","男","1982-03-16",null,"高级工程师","在岗","工艺管理、新材料研究及加工","北京航星机器制造有限公司",{"$nulls":3},"苏胜伟","工艺管理、新材料研究及加工","北京航星机器制造有限公司"]
["潘文武","男","1975-10-12",null,"副研究员","在岗","复杂光机电技术、智能控制技术、激光雷达技术","中国工程物理研究院应用电子学研究所",{"$nulls":3},"潘文武","复杂光机电技术、智能控制技术、激光雷达技术","中国工程物理研究院应用电子学研究所"]
["宋晓抗","女","1987-12-23",null,"高级工程师","在岗","高级工程师","一重集团大连工程技术有限公司",{"$nulls":3},"宋晓抗","高级工程师","一重集团大连工程技术有限公司"]
["展培培","男","1984-11-20",null,"高级工程师","在岗","锻压装备开发","一重集团大连工程技术有限公司",{"$nulls":3},"展培培","锻压装备开发","一重集团大连工程技术有限公司"]
["吕安松","男","1983-10-03",null,"高级工程师","在岗","轨道车辆车体制造技术","中车青岛四方股份公司",{"$nulls":3},"吕安松","轨道车辆车体制造技术","中车青岛四方股份公司"]
["郎玉玲","女","1982-07-18","主任","高级工程师","在岗","CAE仿真","中信戴卡股份有限公司",{"$nulls":3},"郎玉玲","CAE仿真","中信戴卡股份有限公司"]
["宋雷钧","男","1965-09-28",null,"高级工程师","在岗","大锻件","江苏裕隆锻造有限公司",{"$nulls":3},"宋雷钧","大锻件","江苏裕隆锻造有限公司"]

{"sheet":"Sheet1","index":1,"n_rows":237,"n_cols":8,"rows_kept":237}
["导师姓名","性别","出生年月","干部职务","技术职称","工作单位","研究方向","在岗状态"]
["黄增","男","1968-01-02",null,"研究员","中船重工集团公司第七零四研究所","液压伺服阀","在岗"]
["赵斌","男","1967-01-17",null,"高级工程师","江苏徐工工程机械研究院有限公司","工程机械","在岗"]
["王鑫","男","1984-03-11",null,"高级工程师","深圳航天科技创新研究院","机械电子工程、机器人","在岗"]
["杨广文","男","1963-01-07","副主任","高级工程师","北京华德液压工业集团有限责任公司","流体传动与控制、机械制造工艺与装备","在岗"]
["朱学斌","男","1974-10-26",null,"高级工程师","泰安航天特种车有限公司","特种车辆","在岗"]
["陈毅强","男","1972-10-09",null,"高级工程师","沈阳仪表科学研究院有限公司","机械电子工程","在岗"]
["余发国","男","1979-08-08","副院长\r","高级工程师","秦皇岛齐二数控机床有限公司","重型数控机床开发","在岗"]
["李勇","男","1970-05-18","副院长\r","高级工程师","江苏徐工工程机械研究院有限公司","现代设计理论与方法","在岗"]
["邱群先","男","1972-02-28",null,null,"中国船舶重工集团公司第七一三研究所","机械工程","在岗"]
["王久增","男","1976-03-03","科长","高级工程师","唐山市唐港高速公路管理处","交通机电工程","在岗"]
["任玉成","男","1966-09-28",null,"高级工程师","中国重型机械研究院股份公司","冶金机械、板带精整与处理专业","在岗"]
["陈伟","男","1976-12-04",null,"高级工程师","江苏亨通光纤科技有限公司","光学工程","在岗"]
["张君","男","1970-05-28",null,"高级工程师","中国重型机械研究院股份公司","材料加工工程/机械工程","在岗"]
["祁玉龙","男","1982-12-09",null,"高级工程师","江苏徐工工程机械研究院有限公司","工程机械","在岗"]
["程乃良","男","1964-05-21",null,"高级工程师","宝钢股份上海梅山钢铁股份有限公司","炼钢连铸技术研究","在岗"]
["蒋振宇","男","1986-09-30",null,"高级工程师","深圳航天龙海特智能装备有限公司","机器人设计、机器人液压控制","在岗"]
["邱孜学","男","1963-10-01",null,"高级工程师","上海市合成树脂研究所有限公司","特种工程塑料（主要是聚酰亚胺类）配方设计及制作","在岗"]
["耿彦波","男","1982-03-19","所长","高级工程师","江苏徐工工程机械研究院有限公司","新产品开发、整机设计匹配","在岗"]
["漆小虎","男","1971-11-07","院长","高级工程师","二重（德阳）中兴装备有限公司","冶金轧制设备及工艺领域","在岗"]
["邝霜","男","1981-09-22","副主任","高级工程师","河钢集团唐钢公司技术中心","材料加工工程","在岗"]
["刘靖宝","男","1983-05-09","科长","高级工程师","河钢集团唐钢公司技术中心","材料加工","在岗"]
["袁立鹏","男","1976-04-02",null,"工程师","常州迪华数字科技有限公司","高性能行走机器人、液压伺服系统、高精度半实物仿真装置","在岗"]
["于卓伟","男","1965-08-23","院长","高级工程师","北京三一智造科技有限公司","桩工机械： 机电液","在岗"]
["金瑶兰","女","1982-10-19",null,"高级工程师","上海衡拓液压控制技术有限公司","电液伺服阀研制","在岗"]
["单东升","男","1978-10-07",null,"高级工程师","宁波赛福汽车制动有限公司","流体传动及控制、制动防抱死系统研究","在岗"]
["王成林","男","1973-11-18",null,"工程师","旭硝子汽车玻璃（中国）有限公司","玻璃成型/项目管理","在岗"]
["厉勇","男","1980-09-11",null,"工程师","钢铁研究总院","超高强度钢的组织性能研究及开发","在岗"]
["周尚臣","男","1964-06-09",null,"高级工程师","一重集团大连设计研究院有限公司","齿轮传动设计","在岗"]
["陈松战","男","1969-08-16",null,"高级工程师","中信重工机械股份有限公司","机械设计与制造、矿山机械","在岗"]
["孙嫘","女","1972-10-21","副科长","高级工程师","中国第二重型机械集团公司","大型锻件自由锻造","在岗"]
["卢云山","男","1975-02-21",null,"高级工程师","康泰医学系统（秦皇岛）股份有限公司","电子信息系统","在岗"]
["曹英强","男","1979-09-19","部长","高级工程师","中冶京诚工程技术有限公司北京京诚之星科技开发有限公司","锻压设备的设计与研发机械液压方向","在岗"]
["夏志新","男","1971-05-07",null,null,"秦皇岛港股份有限公司","机械","在岗"]
["杨小川","男","1973-09-16",null,"高级工程师","秦皇岛港股份有限公司","港口装卸设备运行管理，装卸设备机械技术","在岗"]
["王振宇","男","1971-09-04","副院长\r","高级工程师","秦皇岛齐燕数控机床有限责任公司","机床设计","在岗"]
["翟清海","男","1955-11-08",null,"高级工程师","北京杰胜博瑞科技有限公司","机电一体化","在岗"]
["陈毅强","男","1972-10-09",null,"高级工程师","沈阳仪表科学研究院有限公司","机械电子工程","在岗"]
["王立海","男","1976-08-10",null,"高级工程师","神华黄骅港务有限责任公司","机械工程","在岗"]
["宋文亮","男","1980-06-18",null,"高级工程师","神华黄骅港务有限责任公司","机械工程及港口设备管理维修","在岗"]
["王金祥","男","1964-11-11",null,"高级工程师","秦皇岛天业通联重工股份有限公司","机械设计","在岗"]
["余发国","男","1979-08-08","副院长\r","高级工程师","秦皇岛齐二数控机床有限公司","重型数控机床开发","在岗"]
["汪大春","男","1979-02-10",null,"高级工程师","神华黄骅港务有限责任公司","机械设计与制造","在岗"]
["师伟","男","1983-02-19",null,"高级工程师","神华黄骅港务有限责任公司","机械设计制造及其自动化液压系统","在岗"]
["姜明","男","1955-02-20","主任","高级工程师","齐齐哈尔二机床（集团）有限责任公司","机械制造及其自动化","在岗"]
["朱志华","男","1971-01-30",null,"高级工程师","中信戴卡轮毂制造股份有限公司","技术管理、材料加工","在岗"]
["陆景丽","女","1980-09-12",null,"高级工程师","秦皇岛港股份有限公司第一港务分公司","技术设备","在岗"]
["王月乔","男","1964-07-15","副主任","高级工程师","中国第二重型机械集团公司","金属材料研究及产品开发","在岗"]
["王绍江","男","1964-12-18",null,"高级工程师","中信戴卡轮毂制造股份有限公司","轮毂加工设备设计制造","在岗"]
["徐世文","男","1968-09-18",null,"高级工程师","中信戴卡轮毂制造股份有限公司","铝车轮设计开发","在岗"]
["刘宏磊","男","1975-11-15",null,"高级工程师","中信戴卡轮毂制造股份有限公司","铝合金汽车零部件加工工艺","在岗"]
["谢静","女","1972-11-03",null,"高级工程师","中国第二重型机械集团公司德阳万航模锻有限责任公司","难变形合金材料特性及模锻成型技术工艺","在岗"]
["赵春章","男","1980-02-21",null,"高级工程师","中国航天科技集团公司","先进制造技术与制造模式","在岗"]
["彭涛","男","1979-05-21","副院长\r\n","高级工程师","芜湖新兴铸管有限责任公司","冶金机械及技术、压力加工","在岗"]
["郭振胜","男","1975-01-07","部长","高级工程师","山东冠洲股份有限公司","轧钢设备及工艺","在岗"]
["宋章峰","男","1967-03-12",null,"高级工程师","山东冠洲股份有限公司","轧钢设备及工艺","在岗"]
["戴勇波","男","1966-04-18",null,"高级工程师","北京星航机电装备有限公司","智能装备集成设计技术，高精对接装配技术","在岗"]
["赵非平","男","1963-11-03",null,"高级工程师","南通超力卷板机制造有限公司","机械制造及金属材料塑性成形","在岗"]
["李森林","男","1964-11-20",null,"高级工程师","南通超力卷板机制造有限公司","机械制造及金属材料塑性成形","在岗"]
["李昌海","男","1970-02-19",null,"高级工程师","中信戴卡股份有限公司","热加工工艺研究，机械设计，铸造及设备","在岗"]
["黄晓光","男","1975-01-25","所长","高级工程师","中信戴卡股份有限公司","机加工艺研究","在岗"]
["黄少兵","男","1975-09-01","副院长\r","高级工程师","中信戴卡股份有限公司","材料、产品设计","在岗"]
["尹志高","男","1971-01-23","副主任","高级工程师","中信戴卡股份有限公司","试验研究","在岗"]
["李明磊","男","1978-04-19",null,"高级工程师","中信戴卡股份有限公司","铝合金车轮产品设计与开发","在岗"]
["李建新","男","1963-10-10","院长","高级工程师","河钢集团钢研总院","钢铁冶金","在岗"]
["吝章国","男","1971-09-02","副院长\r","高级工程师","河钢集团钢研总院","金属压力加工","在岗"]
["常金宝","男","1968-07-29","副院长\r","高级工程师","河钢集团钢研总院","冶金工程","在岗"]
["齐建军","男","1970-10-28","副院长\r","高级工程师","河钢集团钢研总院","金属压力加工","在岗"]
["封一丁","男","1962-12-21","副院长\r","高级工程师","河钢集团钢研总院","自动化","在岗"]
["翟永臻","男","1967-01-16","副院长\r","高级工程师","河钢集团钢研总院","钢铁冶金","在岗"]
["孙力","男","1969-05-05","所长","高级工程师","河钢集团钢研总院","汽车板、家电板产品及技术","在岗"]
["赵英利","男","1981-05-08","主任","高级工程师","河钢集团钢研总院","不锈钢、耐蚀合金材料及焊材的开发","在岗"]
["张瑞忠","男","1973-02-28",null,"高级工程师","河钢集团钢研总院","连铸技术","在岗"]
["孙中华","男","1982-03-02",null,"高级工程师","河钢集团钢研总院","低膨胀金属材料","在岗"]
["陈振业","男","1983-10-05",null,"工程师","河钢集团钢研总院","金属复合板生产工艺及装备研究、中厚板生产工艺研究及新产品开发","在岗"]
["熊自柳","男","1980-09-16",null,"高级工程师","河钢集团钢研总院","汽车板研发及应用","在岗"]
["伊成志","男","1979-12-11",null,"高级工程师","秦皇岛首秦金属材料有限公司","轧钢设备","在岗"]
["俞宏福","男","1962-12-04",null,"高级工程师","三一重机有限公司","工程机械","在岗"]
["曹东辉","男","1959-03-31","院长","高级工程师","三一重机有限公司","工程机械、流体传动","在岗"]
["黄有泉","男","1970-10-13",null,"高级工程师","大庆油田有限责任公司第五采油厂","油气田开发","在岗"]
["王清平","男","1966-05-20",null,"高级工程师","大庆油田有限责任公司第五采油厂","油气田开发","在岗"]
["封存利","男","1970-11-23",null,"高级工程师","焦作市森格高新材料有限责任公司","机械工程","在岗"]
["刘中贤","男","1962-09-18",null,"高级工程师","秦皇岛市中贤幕墙装饰工程有限公司","机械工程、建筑工程","在岗"]
["蒋玉君","女","1962-02-01",null,"高级工程师","秦皇岛市中贤幕墙装饰工程有限公司","工业工程","在岗"]
["刘燕","女","1987-11-11",null,"工程师","秦皇岛市中贤幕墙装饰工程有限公司","机械工程、建筑工程","在岗"]
["蒋皎","男","1983-08-24",null,"工程师","秦皇岛市中贤幕墙装饰工程有限公司","机械工程、建筑工程","在岗"]
["黄增","男","1968-01-02","副主任","研究员","中船重工集团公司第七零四研究所","液压伺服阀","在岗"]
["孙明月","男","1980-10-06",null,"研究员","中国科学院金属研究所","厚大断面金属热成形数值模拟和工艺设计","在岗"]
["周玉生","男","1970-06-07",null,"高级工程师","秦皇岛烟草机械有限责任公司","烟草设备与工艺","在岗"]
["张尚斌","男","1982-09-29",null,"高级工程师","二重集团（德阳）重型装备股份有限公司","冶金设备及其自动化控制","在岗"]
["王大江","男","1982-05-09",null,"高级工程师","秦皇岛天业通联重工科技有限公司","工程机械机电系统的研究","在岗"]
["冯扶民","男","1966-11-10",null,"高级工程师","秦皇岛天业通联重工科技有限公司","机械设计","在岗"]
["牛跃伟","男","1978-03-12","部长","高级工程师","秦港股份第九分公司供水除尘部","港口机械设备技术管理","在岗"]
["单东升","男","1978-10-07",null,null,"宁波赛福汽车制动有限公司","流体传动及控制、制动防抱死系统研究","在岗"]
["段艳宾","男","1983-06-26",null,"高级工程师","中国电子科技集团公司第五十四研究所","机器人技术、机电装备设计","在岗"]
["窦玉超","男","1983-11-13",null,"高级工程师","中国电子科技集团公司第五十四研究所","机器人技术、伺服控制","在岗"]
["葛俊礼","男","1985-03-25",null,"高级工程师","河北港口集团港口机械有限公司","机械设计","在岗"]
["孙瑞辉","男","1982-04-06","主任","工程师","上海诺玛液压系统有限公司","比例多路阀","在岗"]
["吴柳杰","男","1989-04-08",null,"工程师","宁波赛福汽车制动有限公司","液压系统开发及控制","在岗"]
["牛慧峰","男","1977-01-30",null,"高级工程师","北京中车重工机械有限公司","工程机械液压系统设计、测试","在岗"]
["孙炳玉","男","1980-11-11",null,"工程师","江苏恒力液压股份有限公司","机械电子工程","在岗"]
["史向东","男","1968-02-01","院长","高级工程师","力源液压（苏州）有限公司","系统控制、流体传动","在岗"]
["王国山","男","1962-09-24",null,"高级工程师","秦皇岛方华埃西姆机械有限公司","材料成形","在岗"]
["王孝建","男","1971-02-01","副所长","高级工程师","宝钢股份上海梅山钢铁股份有限公司技术中心","材料焊接及冷轧产品工艺技术","在岗"]
["贾锋","男","1981-12-07","部长","高级工程师","大连华锐重工集团股份有限公司","轧钢、新能源","在岗"]
["侯英武","男","1976-11-01",null,"高级工程师","北京圣兆科技开发有限公司","冶金热能与动力","在岗"]
["刘鑫","男","1979-11-25",null,"高级工程师","首钢京唐钢铁联合有限责任公司","机械工程","在岗"]
["范秀斌","男","1979-09-22",null,"研究员","北京星航机电装备有限公司","非标装备设计，数字化设计制造一体化","在岗"]
["秦鹤勇","男","1980-04-20",null,"高级工程师","北京钢研高纳科技股份有限公司","高温合金","在岗"]
["韩伟","男","1980-11-04","副部长","高级工程师","秦皇岛港股份有限公司第九港务分公司","港口机械维护管理","在岗"]
["钱涛","男","1962-12-29",null,null,"星弧涂层新材料科技（苏州）股份有限公司","高端涂层设计及装备","在岗"]
["靳永波","男","1989-03-03",null,"高级工程师","石家庄高强金属制品有限公司","高强钢成形工艺研发","在岗"]
["李建","男","1985-01-03",null,"高级工程师","秦皇岛燕大现代集成制造技术开发有限公司","轮毂成形设备及工艺研发","在岗"]
["王久增","男","1976-03-03","科长","高级工程师","唐山市唐港高速公路管理处","交通机电工程","在岗"]
["刘建芳","男","1979-07-24",null,"高级工程师","秦皇岛市戴卡兴龙轮毂有限公司","轻量化汽车零部件设计制造","在岗"]
["包汉生","男","1979-06-15","主任","高级工程师","钢铁研究总院","能源用钢及耐热合金","在岗"]
["刘培勇","男","1979-06-01",null,"高级工程师","秦皇岛天业通联重工科技有限公司","桥梁施工装备及特种运输车辆","在岗"]
["李鑫磊","男","1982-10-31",null,"高级工程师","中信戴卡股份有限公司工程技术研究院","材料成型、汽车底盘模块化、新能源汽车关键技术","在岗"]
["何保卫","男","1983-06-27",null,"高级工程师","中国重型机械研究院股份公司","冶金机械的设计、开发和研究","在岗"]
["史学亮","男","1984-10-08",null,"高级工程师","中国重型机械研究院股份公司","连铸设备及工艺","在岗"]
["么玉林","男","1967-04-12",null,"高级工程师","唐山钢铁集团有限责任公司冷轧薄板厂","轧钢电气自动化、冷轧工艺技术、冷轧设备的关键技术","在岗"]
["高琦","男","1978-02-10",null,"高级工程师","中国重型机械研究院股份公司","连铸核心技术研发","在岗"]
["董悫","男","1983-12-10",null,"高级工程师","北京卫星环境工程研究所","空间机器人、航天器智能装配","在岗"]
["隆昌宇","男","1988-06-11",null,"高级工程师","北京卫星环境工程研究所","大尺寸精密测量","在岗"]
["徐波涛","男","1982-06-28","副主任","高级工程师","北京卫星环境工程研究所","航天器总装技术","在岗"]
["胡瑞钦","男","1988-07-29","副主任","高级工程师","北京卫星环境工程研究所","机器人装配技术","在岗"]
["代海林","男","1986-08-24","副主任","高级工程师","北京卫星环境工程研究所","航天器总装技术","在岗"]
["孟少华","男","1985-11-19","副主任","高级工程师","北京卫星环境工程研究所","机器人装配技术","在岗"]
["李凌云","男","1981-04-28","部长","高级工程师","秦港股份九分公司装船部","设备管理、安全管理","在岗"]
["祁玉龙","男","1982-12-09",null,"高级工程师","江苏徐工工程机械研究院有限公司","工程机械","在岗"]
["朱学斌","男","1974-10-26",null,"高级工程师","泰安航天特种车有限公司","特种车辆","在岗"]
["杨广文","男","1963-01-07","副主任","高级工程师","北京华德液压工业集团有限责任公司","流体传动与控制、机械制造工艺与装备","在岗"]
["杨超","男","1980-01-19",null,null,"秦皇岛照见生物科技有限公司","流体传动与控制、流体机械","在岗"]
["林广","男","1961-03-24",null,"高级工程师","油威力液压科技股份有限公司","液压元件系统及电液比例技术、液压比例阀测试标准方法","在岗"]
["张璐","男","1982-06-26",null,"高级工程师","北京汇志博远机电科技有限公司","机械设备电液控制系统的设计与开发","在岗"]
["刘剑","男","1981-08-16","主任","高级工程师","郑州新大方重工科技有限公司","机械工程","在岗"]
["韩丽丽","女","1980-12-12","主任","高级工程师","郑州新大方重工科技有限公司","特种起重机及设备智能管理系统研发","在岗"]
["戴建军","男","1983-02-19","部长","工程师","江苏海鹏特种车辆有限公司","重型运输车液压及控制技术","在岗"]
["周静辉","男","1978-11-23",null,"高级工程师","上海灵钥机械设计有限公司","机械设计及自动化","在岗"]
["王智勇","男","1978-06-15",null,"高级工程师","秦皇岛汇志思凯机械设备有限公司","机械电子工程","在岗"]
["郑大周","男","1981-12-20","主任","高级工程师","东方电气集团东方风电有限公司","风电机组设计","在岗"]
["张志华","男","1962-09-20",null,"高级工程师","郑州新大方重工科技有限公司","机械工程","在岗"]
["吴延江","男","1972-08-16","书记","高级工程师","中铁二十二局集团第二工程有限公司","设备工程与管理","在岗"]
["杜以军","男","1970-06-19",null,"高级工程师","中铁二十二局集团第二工程有限公司","机械设计及制造","在岗"]
["漆小虎","男","1971-11-07","院长","高级工程师","二重（德阳）中兴装备有限公司","冶金轧制设备及工艺领域","在岗"]
["吕晓江","男","1982-01-17",null,"工程技术人员","吉利汽车研究院（宁波）有限公司","车辆安全技术开发，弱势道路使用者保护技术开发","在岗"]
["张彪","男","1980-09-01",null,"副研究员","唐山海荣机器人应用技术研究院","车辆工程 新能源汽车电子控制系统","在岗"]
["王云祥","男","1982-04-05",null,null,"河北省乐亭县商务和投资促进局","轧制","在岗"]
["令狐克志","男","1978-02-06",null,"高级工程师","河钢集团唐钢公司技术中心","轧钢板型控制","在岗"]
["李保永","男","1984-10-02",null,"高级工程师","北京航星机械制造有限公司精密塑性成形","轻量化结构精密塑性成形","在岗"]
["何凯","男","1972-09-05","主任","高级工程师","中科院深圳先进技术研究院","金属成形技术及装备","在岗"]
["张军","男","1981-09-02",null,"工程师","江西吉利新能源商用车有限公司","车辆工程","在岗"]
["刘永","男","1987-04-10","副主任","工程师","航天晨光上海分公司","智能装备及精密成型研究","在岗"]
["张寅","男","1979-09-20",null,"副教授","河北鹏远光电股份有限公司","机械电子及控制","在岗"]
["梁爽","男","1982-02-16",null,"高级工程师","成都飞机工业（集团）有限责任公司","飞机总体设计","在岗"]
["耿彦波","男","1982-03-19","所长","高级工程师","江苏徐工工程机械研究院有限公司","新产品开发、整机设计匹配","在岗"]
["邱孜学","男","1963-10-01",null,"高级工程师","上海市合成树脂研究所有限公司","特种工程塑料（主要是聚酰亚胺类）配方设计及制作","在岗"]
["蔺鸿达","男","1974-12-08","副主任","高级工程师","国家客运架空索道安全监督检验中心","客运索道检验检测","在岗"]
["刘靖宝","男","1983-05-09","科长","高级工程师","河钢集团唐钢公司技术中心","材料加工","在岗"]
["刘晓","男","1986-05-17",null,"高级工程师","山西交通科学研究院集团有限公司","交通智能装备 机电一体化","在岗"]
["马博","男","1982-11-17",null,"高级工程师","一重集团大连工程技术有限公司","冶金机械装备设计","在岗"]
["李所军","男","1971-10-29",null,"高级工程师","中国船舶集团有限公司第703研究所","空间宇航机构，舰船动力控制","在岗"]
["苏兴振","男","1977-01-04",null,"工程师","中信戴卡股份有限公司","机电工程（设备）","在岗"]
["张焰明","男","1982-04-02","主任","高级工程师","北京中车重工机械有限公司","工程机械液压系统设计及应用","在岗"]
["刘立志","男","1977-09-14",null,"高级工程师","秦皇岛天业通联重工科技有限公司","工程机械液压系统设计及应用","在岗"]
["徐振威","男","1981-05-15",null,"高级工程师","绝味食品股份有限公司","机电一体化系统开发和应用","在岗"]
["李永辉","男","1981-07-20",null,"高级工程师","中国重型机械研究院股份有限公司","设备技术开发","在岗"]
["田伟强","男","1984-11-21",null,"高级工程师","中铁山桥集团有限公司","轨道装备","在岗"]
["徐利璞","男","1984-11-25",null,"高级工程师","中国重型机械研究院股份有限公司","板带轧制装备","在岗"]
["张强","男","1976-12-02","主任","高级工程师","国家客运架空索道安全监督检验中心","客运索道安全管理、安全检验","在岗"]
["赵德利","男","1981-12-16",null,"高级工程师","天津重型装备研究有限公司","锻件材料研发及工艺","在岗"]
["常海平","男","1978-09-20","所长","高级工程师","中信戴卡股份有限公司","车轮设计、工艺及装备","在岗"]
["郭松旺","男","1980-03-20",null,"工程师","达能（中国）食品饮料有限公司","饮料包装技术与自动化","在岗"]
["靳国兴","男","1973-10-01",null,"工程师","达能（中国）食品饮料有限公司","食品机械机电一体化集成","在岗"]
["景群平","男","1974-10-21",null,"高级工程师","中国重型机械研究院股份公司","机械制造及其自动化","在岗"]
["袁立鹏","男","1976-04-02",null,"工程师","常州迪华数字科技有限公司","高性能行走机器人、液压伺服系统、高精度半实物仿真装置","在岗"]
["邝霜","男","1981-09-22","副主任","高级工程师","河钢集团唐钢公司技术中心","材料加工工程","在岗"]
["于卓伟","男","1965-08-23","院长","高级工程师","北京三一智造科技有限公司","桩工机械： 机电液","在岗"]
["杜雄","男","1972-05-24","副主任","高级工程师","上海机床厂有限公司","静压支承技术、电主轴设计","在岗"]
["王亮","男","1980-05-29","主任",null,"北京星航机电装备有限公司","飞行器数字化制造技术与装备研发","在岗"]
["李永亮","男","1984-04-10",null,"高级工程师","河钢唐钢技术中心","轧制","在岗"]
["汪云辉","男","1984-11-06","主任","高级工程师","河钢唐钢技术中心","轧制","在岗"]
["张伟","男","1967-10-17","副处长","高级工程师","河钢唐钢集团重机装备有限公司","机械制造工程技术","在岗"]
["陈赞","男","1987-01-25",null,"工程师","宁波燕清汽车技术有限公司","汽车/摩托车车辆防抱死制动系统","在岗"]
["谢作建","男","1989-09-17","部长","工程师","上海衡拓液压控制技术有限公司","刹车伺服阀","在岗"]
["张永超","男","1984-10-12","部长","工程师","江苏宏昌天马物流装备有限公司","起重机械及高空机械设计","在岗"]
["唐启敬","男","1983-11-20",null,"高级工程师","上海航天电子技术研究所","雷达结构设计","在岗"]
["罗许","男","1982-10-30",null,"高级工程师","攀钢集团研究院有限公司","材料加工工艺研究","在岗"]
["高永操","男","1980-01-20",null,"高级工程师","八环集团浙江环誉泵业科技有限公司","航空航天油泵研发","在岗"]
["俞继印","男","1980-04-05",null,"高级工程师","海天塑机集团有限公司","注塑机液压系统","在岗"]
["戴国平","男","1979-06-24",null,"高级工程师","海天塑机集团有限公司","液压设计","在岗"]
["刘得龙","男",null,"主任","主任医师","大连市中心医院","耳鼻咽喉科学的基础与临床研究","在岗"]
["张英富","男","1984-02-14","部长","工程师","长城汽车股份有限公司","底盘系统开发及控制研究","在岗"]
["句彦儒","男","1984-02-22",null,"高级工程师","长城汽车股份有限公司","汽车振动噪声","在岗"]
["柴立平","女","1989-06-05",null,null,"河北瑞鹤医疗器械有限公司","部门运营与人员管理；骨科内植产品理念、结构及法规研究","在岗"]
["苑飞虎","男","1986-01-17",null,"工程师","上海朱光亚战略科技研究院","机器人技术与应用","在岗"]
["卢勇","男",null,"系总支书记","高级工程师","秦皇岛星箭特种玻璃有限公司","航天特种玻璃加工","在岗"]
["丁国智","男","1981-08-30","主任","研究员","北京星航机电装备有限公司","飞行器制造、智能制造","在岗"]
["王旭升","男","1968-02-12",null,"高级工程师","廊坊瑞立达智能机器有限公司","机器人及人工智能","在岗"]
["李长明","男","1974-07-12",null,"高级工程师","秦皇岛弘和机械有限责任公司","机械产品设计","在岗"]
["赵铁勇","男","1982-06-02",null,"高级工程师","中国重型机械研究院股份公司","高精度不锈钢管冷轧设备","在岗"]
["袁国明","男","1963-09-30",null,"高级工程师","一重集团大连工程技术有限公司","高端装备研发设计","在岗"]
["马小英","男","1984-05-07",null,"高级工程师","中信戴卡股份有限公司","汽车零部件热成型工艺研究","在岗"]
["张少坤","男","1985-09-02",null,"高级工程师","一重集团大连工程技术有限公司","冷轧设备及工艺","在岗"]
["翟进坡","男","1980-02-22",null,"高级工程师","唐山市德龙钢铁有限公司","材料科学与工程","在岗"]
["王德全","男","1972-04-10",null,"工程师","唐山市德龙钢铁有限公司","钢铁冶金","在岗"]
["陈志立","男","1971-10-22",null,"高级工程师","唐山市德龙钢铁有限公司","轧钢设备及工艺","在岗"]
["莫安军","男","1982-10-28",null,"高级工程师","中国二重万航模锻公司","航空用大型负责钛合金锻件形性协同控制研究及大型复杂模具工装设计制造","在岗"]
["孙朝远","男","1986-04-24",null,"工程师","中国二重万航模锻公司","钛合金、高温合金等难变形合金塑性成形研究","在岗"]
["段玮","男","1980-08-16",null,"工程师","秦皇岛瀚丰长白科技有限责任公司","弹药类军工产品开发","在岗"]
["李强","男","1983-11-05",null,"高级工程师","秦皇岛瀚丰长白科技有限责任公司","机械设计及制造","在岗"]
["姚庆","男","1979-10-18","部长","高级工程师","秦皇岛瀚丰长白科技有限责任公司","连铸设备非标设计及机械制造工艺","在岗"]
["朱仲文","男","1988-05-04",null,"高级工程师","中汽研扬州汽车工程研究院有限公司","新能源汽车、燃料电池汽车技术","在岗"]
["王振峰","男",null,null,"高级工程师","中汽研（天津）扬州汽车工程研究所有限公司","智能车辆动力学及控制","在岗"]
["颜家勇","男","1985-07-13",null,"高级工程师","北京卫星制造厂有限公司","航天器在轨制造、在轨组装及测试技术","在岗"]
["杨东升","男","1986-10-11",null,"高级工程师","北京卫星制造厂有限公司","流体机械设计及分析技术","在岗"]
["朱军来","男","1990-10-07",null,"工程师","上海灵钥机电科技发展有限公司","汽车，医疗行业非标自动化设备研发","在岗"]
["李乐之","男","1992-07-23",null,"工程师","上海灵钥机电科技发展有限公司","机械结构设计","在岗"]
["胡中望","男","1975-10-25","所长","高级工程师","上海振华重工（集团）股份有限公司","港口机械液压系统、无人驾驶跨运车装备","在岗"]
["宋豫","男","1986-09-12",null,"高级工程师","上海振华重工（集团）股份有限公司","港口装备流体转动及控制","在岗"]
["杨书华","男","1985-11-12",null,"高级工程师","新乡航空工业（集团）有限公司116厂","液压技术","在岗"]
["李磊","男","1980-07-05","副主任","高级工程师","新乡航空工业集团有限公司","污染控制","在岗"]
["祖立正","男","1984-09-23",null,"工程师","新乡航空工业（集团）有限公司","航空机载液压附件","在岗"]
["裴有志","男","1975-12-05",null,"高级工程师","中国人民解放军第五七二一工厂","军用飞机维修机械专业","在岗"]
["杨永","男","1985-06-16","主任","高级工程师","中国人民解放军第五七二一工厂","飞机维修","在岗"]
["刘航","男","1974-12-05",null,"高级工程师","中国人民解放军第五七二一工厂","飞机维修","在岗"]
["王鑫玮","男","1982-05-20",null,"高级工程师","中国人民解放军第五七二一工厂","飞机维修","在岗"]
["龚方友","男","1978-08-09","副主任","研究员","中国船舶集团公司第七一五研究所","海工装备机电液系统研究","在岗"]
["董朋鹏","男","1986-05-13",null,"高级工程师","中国船舶集团公司第七一五研究所","机械电子工程；海洋工程装备液压系统研发及故障诊断","在岗"]
["何凯","男","1972-09-05","主任","高级工程师","中科院深圳先进技术研究院","金属成形技术及装备","在岗"]
["苏胜伟","男","1982-03-16",null,"高级工程师","北京航星机器制造有限公司","工艺管理、新材料研究及加工","在岗"]
["潘文武","男","1975-10-12",null,"副研究员","中国工程物理研究院应用电子学研究所","复杂光机电技术、智能控制技术、激光雷达技术","在岗"]
["宋晓抗","女","1987-12-23",null,"高级工程师","一重集团大连工程技术有限公司","高级工程师","在岗"]
["展培培","男","1984-11-20",null,"高级工程师","一重集团大连工程技术有限公司","锻压装备开发","在岗"]
["吕安松","男","1983-10-03",null,"高级工程师","中车青岛四方股份公司","轨道车辆车体制造技术","在岗"]
["郎玉玲","女","1982-07-18","主任","高级工程师","中信戴卡股份有限公司","CAE仿真","在岗"]
["宋雷钧","男","1965-09-28",null,"高级工程师","江苏裕隆锻造有限公司","大锻件","在岗"]